[Event "Panchenko Memorial 2019"]
[Site "Chelyabinsk"]
[Date "2019.09.12"]
[Round "4.5"]
[White "Nugumanov, Bakhtiyar"]
[Black "Yudin, Sergei"]
[Result "1/2-1/2"]
[ECO "C70"]
[WhiteElo "2387"]
[BlackElo "2494"]
[Annotator "ChessBase"]
[PlyCount "80"]
[EventDate "2019.09.09"]
[EventType "swiss"]
[EventCountry "RUS"]
[SourceTitle "playchess.com"]
[Source "ChessBase"]
[SourceQuality "1"]
[TimeControl "5400+30"]

1. e4 {[%emt 0:00:00]} e5 {[%emt 0:00:31]} 2. Nf3 {[%emt 0:00:14]} Nc6 {[%emt 0:00:09]} 3. Bb5 {[%emt 0:01:01]} a6 {[%emt 0:00:07]} 4. Ba4 {[%emt 0:00:31]} g6 {[%emt 0:00:29]} 5. c3 {[%emt 0:02:04]} Bg7 {[%emt 0:00:55]} 6. d4 {[%emt 0:00:14]} exd4 {[%emt 0:00:06]} 7. cxd4 {[%emt 0:00:05]} b5 {[%emt 0:00:03]} 8. Bb3 {[%emt 0:00:53]} d6 {[%emt 0:00:22]} 9. h3 {[%emt 0:02:14]} Nge7 {[%emt 0:00:50]} 10. Nc3 {[%emt 0:00:56]} Na5 {[%emt 0:03:55]} 11. Bc2 {[%emt 0:00:47]} O-O {[%emt 0:01:39]} 12. O-O {[%emt 0:00:27]} c5 {[%emt 0:02:01]} 13. Bf4 {[%emt 0:01:30]} cxd4 {[%emt 0:10:27]} 14. Nxd4 {[%emt 0:00:34]} Bb7 {[%emt 0:01:23]} 15. Rc1 {[%emt 0:07:40]} d5 {[%emt 0:04:11]} 16. Bg5 {[%emt 0:11:39]} h6 {[%emt 0:15:05]} 17. Bxe7 {[%emt 0:02:12]} Qxe7 {[%emt 0:01:32]} 18. Nxd5 {[%emt 0:00:21]} Qe5 {[%emt 0:02:44]} 19. b4 {[%emt 0:05:59]} Bxd5 {[%emt 0:00:22]} 20. exd5 {[%emt 0:01:47]} Qxd5 {[%emt 0:00:15]} 21. bxa5 {[%emt 0:01:31]} Bxd4 {[%emt 0:04:52]} 22. Bb3 {[%emt 0:00:33]} Qd6 {[%emt 0:01:14]} 23. Qf3 {[%emt 0:02:27]} Qf6 {[%emt 0:00:34]} 24. Qxf6 {[%emt 0:02:20]} Bxf6 {[%emt 0:00:11]} 25. Rc6 {[%emt 0:00:31]} Kg7 {[%emt 0:00:23]} 26. Rd1 {[%emt 0:00:29]} Rfd8 {[%emt 0:02:11]} 27. Rcd6 {[%emt 0:02:51]} Rxd6 {[%emt 0:00:51]} 28. Rxd6 {[%emt 0:00:04]} Ra7 {[%emt 0:00:31]} 29. Bd5 {[%emt 0:05:24]} Bc3 {[%emt 0:04:03]} 30. Rb6 {[%emt 0:00:43]} Bxa5 {[%emt 0:01:01]} 31. Rb7 {[%emt 0:00:10]} Rxb7 {[%emt 0:00:05]} 32. Bxb7 {[%emt 0:00:02]} Bb6 {[%emt 0:00:08]} 33. Bxa6 {[%emt 0:00:05]} b4 {[%emt 0:00:03]} 34. Bc4 {[%emt 0:00:06]} f5 {[%emt 0:00:10]} 35. Kf1 {[%emt 0:00:04]} Kf6 {[%emt 0:00:04]} 36. Ke2 {[%emt 0:00:07]} Ke5 {[%emt 0:00:06]} 37. Bb3 {[%emt 0:00:19]} g5 {[%emt 0:00:07]} 38. Bc4 {[%emt 0:00:12]} Bc5 {[%emt 0:00:05]} 39. Bb3 {[%emt 0:00:04]} Bb6 {[%emt 0:00:02]} 40. Bc4 {[%emt 0:00:04]} Bc5 {[%emt 0:00:04]} 1/2-1/2

[Event "Panchenko Memorial 2019"]
[Site "Chelyabinsk"]
[Date "2019.09.12"]
[Round "4.6"]
[White "Nesterov, Arseniy"]
[Black "Radzhabov, Rodion"]
[Result "1/2-1/2"]
[ECO "A18"]
[WhiteElo "2473"]
[BlackElo "2384"]
[Annotator "ChessBase"]
[PlyCount "80"]
[EventDate "2019.09.09"]
[EventType "swiss"]
[EventCountry "RUS"]
[SourceTitle "playchess.com"]
[Source "ChessBase"]
[SourceQuality "1"]
[TimeControl "5400+30"]

1. c4 {[%emt 0:00:00]} Nf6 {[%emt 0:00:00]} 2. Nc3 {[%emt 0:00:00]} e6 {[%emt 0:00:00]} 3. e4 {[%emt 0:00:00]} d5 {[%emt 0:00:20]} 4. e5 {[%emt 0:00:00]} Ne4 {[%emt 0:00:15]} 5. cxd5 {[%emt 0:01:46]} exd5 {[%emt 0:02:51]} 6. Nf3 {[%emt 0:02:15]} Nxc3 {[%emt 0:08:33]} 7. bxc3 {[%emt 0:01:42]} c5 {[%emt 0:01:25]} 8. d4 {[%emt 0:03:44]} Nc6 {[%emt 0:04:20]} 9. Be2 {[%emt 0:03:17]} cxd4 {[%emt 0:12:13]} 10. cxd4 {[%emt 0:00:10]} Bb4+ {[%emt 0:00:24]} 11. Bd2 {[%emt 0:00:06]} Qa5 {[%emt 0:00:30]} 12. Rb1 {[%emt 0:05:01]} Bxd2+ {[%emt 0:10:16]} 13. Qxd2 {[%emt 0:00:06]} Ke7 {[%emt 0:16:07]} 14. Rb5 {[%emt 0:07:11]} Qxd2+ {[%emt 0:00:25]} 15. Kxd2 {[%emt 0:00:02]} Rb8 {[%emt 0:01:35]} 16. Rc1 {[%emt 0:04:31]} Be6 {[%emt 0:01:06]} 17. Rbc5 {[%emt 0:06:10]} Rhc8 {[%emt 0:06:54]} 18. Ba6 {[%emt 0:10:50]} Nb4 {[%emt 0:03:36]} 19. Rxc8 {[%emt 0:00:08]} Rxc8 {[%emt 0:00:06]} 20. Bxb7 {[%emt 0:01:26]} Rxc1 {[%emt 0:01:42]} 21. Kxc1 {[%emt 0:00:02]} Nxa2+ {[%emt 0:08:40]} 22. Kb2 {[%emt 0:03:50]} Nb4 {[%emt 0:00:08]} 23. Ne1 {[%emt 0:02:33]} a5 {[%emt 0:08:23]} 24. Kb3 {[%emt 0:00:19]} Bd7 {[%emt 0:01:19]} 25. Nc2 {[%emt 0:01:53]} Ba4+ {[%emt 0:03:43]} 26. Kxa4 {[%emt 0:00:09]} Nxc2 {[%emt 0:00:03]} 27. Bxd5 {[%emt 0:00:12]} Nxd4 {[%emt 0:00:03]} 28. Kxa5 {[%emt 0:00:18]} g5 {[%emt 0:01:14]} 29. Kb4 {[%emt 0:00:49]} f6 {[%emt 0:00:04]} 30. exf6+ {[%emt 0:00:14]} Kxf6 {[%emt 0:00:02]} 31. Kc4 {[%emt 0:00:13]} Ke5 {[%emt 0:01:45]} 32. Bg8 {[%emt 0:01:04]} h6 {[%emt 0:00:10]} 33. Kd3 {[%emt 0:00:25]} Nf5 {[%emt 0:00:22]} 34. Bh7 {[%emt 0:00:19]} Ne7 {[%emt 0:00:16]} 35. Ke3 {[%emt 0:01:09]} Nd5+ {[%emt 0:00:05]} 36. Kf3 {[%emt 0:00:09]} Nf6 {[%emt 0:00:15]} 37. Bb1 {[%emt 0:01:05]} Nd5 {[%emt 0:00:26]} 38. Ba2 {[%emt 0:02:33]} Nf6 {[%emt 0:00:22]} 39. h3 {[%emt 0:00:06]} Ne4 {[%emt 0:00:24]} 40. Ke3 {[%emt 0:00:38]} Nd6 {[%emt 0:00:42] Ke4+} 1/2-1/2

[Event "Panchenko Memorial 2019"]
[Site "Chelyabinsk"]
[Date "2019.09.12"]
[Round "4.7"]
[White "Salemgareev, Tagir"]
[Black "Tologontegin, Semetey"]
[Result "0-1"]
[ECO "A40"]
[WhiteElo "2457"]
[BlackElo "2369"]
[Annotator "ChessBase"]
[PlyCount "82"]
[EventDate "2019.09.09"]
[EventType "swiss"]
[EventCountry "RUS"]
[SourceTitle "playchess.com"]
[Source "ChessBase"]
[SourceQuality "1"]
[TimeControl "5400+30"]

1. d4 {[%emt 0:00:00]} g6 {[%emt 0:01:33]} 2. c4 {[%emt 0:00:00]} Bg7 {[%emt 0:00:06]} 3. Nc3 {[%emt 0:00:05]} e6 {[%emt 0:00:18]} 4. Nf3 {[%emt 0:00:46]} Ne7 {[%emt 0:03:40]} 5. e4 {[%emt 0:01:09]} O-O {[%emt 0:00:22]} 6. Be3 {[%emt 0:02:26]} d5 {[%emt 0:00:13]} 7. Qd2 {[%emt 0:01:38]} dxe4 {[%emt 0:01:09]} 8. Nxe4 {[%emt 0:00:07]} Nf5 {[%emt 0:00:42]} 9. O-O-O {[%emt 0:28:39]} Nxe3 {[%emt 0:02:35]} 10. Qxe3 {[%emt 0:03:05]} b6 {[%emt 0:11:32]} 11. h4 {[%emt 0:04:50]} Bb7 {[%emt 0:01:03]} 12. h5 {[%emt 0:01:14]} Nd7 {[%emt 0:00:17]} 13. hxg6 {[%emt 0:02:28]} hxg6 {[%emt 0:00:05]} 14. Ne5 {[%emt 0:26:38]} Bxe4 {[%emt 0:40:11]} 15. Qxe4 {[%emt 0:17:56]} c5 {[%emt 0:07:53]} 16. Bd3 {[%emt 0:03:04]} cxd4 {[%emt 0:18:28]} 17. Nxg6 {[%emt 0:00:28]} fxg6 {[%emt 0:00:04]} 18. Qxg6 {[%emt 0:00:21]} Nf6 {[%emt 0:00:32]} 19. Rh7 {[%emt 0:01:08]} Rf7 {[%emt 0:03:48]} 20. Rh8+ {[%emt 0:00:28]} Kxh8 {[%emt 0:00:05]} 21. Qxf7 {[%emt 0:00:04]} Qf8 {[%emt 0:00:04]} 22. Qxe6 {[%emt 0:00:16]} Re8 {[%emt 0:00:07]} 23. Qf5 {[%emt 0:01:20]} Qc5 {[%emt 0:00:35]} 24. Qg6 {[%emt 0:01:41]} Kg8 {[%emt 0:01:07]} 25. g4 {[%emt 0:01:06]} Qe5 {[%emt 0:01:59]} 26. Kc2 {[%emt 0:00:48]} Re6 {[%emt 0:01:47]} 27. Rh1 {[%emt 0:00:45]} Kf8 {[%emt 0:00:19]} 28. g5 {[%emt 0:00:28]} Nd5 {[%emt 0:00:59]} 29. Qh7 {[%emt 0:00:47]} Nb4+ {[%emt 0:00:14]} 30. Kb3 {[%emt 0:00:04]} Nxd3 {[%emt 0:00:57]} 31. Qxd3 {[%emt 0:00:02]} Qe4 {[%emt 0:00:23]} 32. Qh3 {[%emt 0:00:23]} b5 {[%emt 0:01:01]} 33. cxb5 {[%emt 0:00:46]} Qd5+ {[%emt 0:00:31]} 34. Ka3 {[%emt 0:00:17]} d3 {[%emt 0:01:30]} 35. Rc1 {[%emt 0:01:29]} Ra6+ {[%emt 0:00:38]} 36. Kb4 {[%emt 0:00:22]} Qd4+ {[%emt 0:00:21]} 37. Rc4 {[%emt 0:00:06]} Qxb2+ {[%emt 0:00:16]} 38. Kc5 {[%emt 0:00:05]} Qe5+ {[%emt 0:00:18]} 39. Kb4 {[%emt 0:00:07]} Qd6+ {[%emt 0:00:38]} 40. Rc5 {[%emt 0:00:06]} Bc3+ {[%emt 0:00:34]} 41. Kb3 {[%emt 0:00:18]} Ra3+ {[%emt 0:00:18]} 0-1

[Event "Panchenko Memorial 2019"]
[Site "Chelyabinsk"]
[Date "2019.09.12"]
[Round "4.8"]
[White "Bocharov, Ivan"]
[Black "Garifullina, Leya"]
[Result "1/2-1/2"]
[ECO "A30"]
[WhiteElo "2557"]
[BlackElo "2304"]
[Annotator "ChessBase"]
[PlyCount "87"]
[EventDate "2019.09.09"]
[EventType "swiss"]
[EventCountry "RUS"]
[SourceTitle "playchess.com"]
[Source "ChessBase"]
[SourceQuality "1"]
[TimeControl "5400+30"]

1. c4 {[%emt 0:00:00]} c5 {[%emt 0:00:00]} 2. Nf3 {[%emt 0:00:00]} Nf6 {[%emt 0:00:00]} 3. Nc3 {[%emt 0:00:00]} e6 {[%emt 0:00:00]} 4. e3 {[%emt 0:00:00]} Nc6 {[%emt 0:00:00]} 5. d4 {[%emt 0:00:00]} d5 {[%emt 0:00:06]} 6. cxd5 {[%emt 0:00:07]} exd5 {[%emt 0:00:10]} 7. Bb5 {[%emt 0:00:12]} cxd4 {[%emt 0:00:09]} 8. Nxd4 {[%emt 0:00:01]} Bd7 {[%emt 0:00:08]} 9. O-O {[%emt 0:00:08]} Bd6 {[%emt 0:00:03]} 10. b3 {[%emt 0:00:04]} O-O {[%emt 0:01:29]} 11. Bb2 {[%emt 0:00:10]} Re8 {[%emt 0:00:34]} 12. Rc1 {[%emt 0:01:34]} Nxd4 {[%emt 0:02:13]} 13. Bxd7 {[%emt 0:12:50]} Qxd7 {[%emt 0:00:52]} 14. Qxd4 {[%emt 0:00:11]} Be5 {[%emt 0:00:34]} 15. Qa4 {[%emt 0:05:54]} b5 {[%emt 0:09:07]} 16. Qh4 {[%emt 0:06:06]} d4 {[%emt 0:05:35]} 17. exd4 {[%emt 0:02:10]} Qxd4 {[%emt 0:00:46]} 18. Qxd4 {[%emt 0:02:39]} Bxd4 {[%emt 0:00:18]} 19. Rfd1 {[%emt 0:00:52]} Rad8 {[%emt 0:00:47]} 20. h3 {[%emt 0:00:01]} a6 {[%emt 0:00:42]} 21. Kf1 {[%emt 0:00:44]} h6 {[%emt 0:01:25]} 22. Rc2 {[%emt 0:07:34]} Rd7 {[%emt 0:08:32]} 23. Nd5 {[%emt 0:01:53]} Rxd5 {[%emt 0:01:23]} 24. Rxd4 {[%emt 0:00:08]} Re6 {[%emt 0:01:34]} 25. g3 {[%emt 0:05:29]} Rxd4 {[%emt 0:02:13]} 26. Bxd4 {[%emt 0:00:01]} Nd5 {[%emt 0:00:25]} 27. Rd2 {[%emt 0:00:02]} Nf6 {[%emt 0:02:34]} 28. Bb2 {[%emt 0:06:05]} Kh7 {[%emt 0:01:15]} 29. f3 {[%emt 0:00:18]} Kg6 {[%emt 0:00:26]} 30. Kf2 {[%emt 0:00:17]} h5 {[%emt 0:01:05]} 31. g4 {[%emt 0:01:21]} hxg4 {[%emt 0:00:42]} 32. hxg4 {[%emt 0:00:01]} Rc6 {[%emt 0:01:43]} 33. Kg3 {[%emt 0:02:24]} Re6 {[%emt 0:01:34]} 34. Kf4 {[%emt 0:03:20]} Rc6 {[%emt 0:01:13]} 35. Be5 {[%emt 0:00:04]} Ne8 {[%emt 0:02:49]} 36. Ke4 {[%emt 0:06:21]} Nf6+ {[%emt 0:02:35]} 37. Ke3 {[%emt 0:04:00]} Re6 {[%emt 0:01:24]} 38. Kd4 {[%emt 0:01:27]} Rc6 {[%emt 0:00:16]} 39. Bf4 {[%emt 0:02:57]} Ne8 {[%emt 0:03:38]} 40. a4 {[%emt 0:03:27]} bxa4 {[%emt 0:04:19]} 41. bxa4 {[%emt 0:00:01]} Nc7 {[%emt 0:00:46]} 42. Bxc7 {[%emt 0:02:22]} Rxc7 {[%emt 0:00:05]} 43. Rb2 {[%emt 0:00:56]} Kg5 {[%emt 0:00:50]} 44. Rb6 {[%emt 0:04:03]} 1/2-1/2

[Event "Panchenko Memorial 2019"]
[Site "Chelyabinsk"]
[Date "2019.09.12"]
[Round "4.9"]
[White "Berzinsh, Roland"]
[Black "Stupak, Kirill"]
[Result "0-1"]
[ECO "A45"]
[WhiteElo "2376"]
[BlackElo "2551"]
[Annotator "ChessBase"]
[PlyCount "182"]
[EventDate "2019.09.09"]
[EventType "swiss"]
[EventCountry "RUS"]
[SourceTitle "playchess.com"]
[Source "ChessBase"]
[SourceQuality "1"]
[TimeControl "5400+30"]

1. d4 {[%emt 0:00:00]} Nf6 {[%emt 0:14:08]} 2. Bf4 {[%emt 0:00:33]} d5 {[%emt 0:02:22]} 3. e3 {[%emt 0:00:18]} c5 {[%emt 0:00:32]} 4. Nf3 {[%emt 0:00:18]} Nc6 {[%emt 0:02:48]} 5. Nbd2 {[%emt 0:00:20]} e6 6. c3 {[%emt 0:00:21]} Nh5 {[%emt 0:01:09]} 7. Bg5 {[%emt 0:02:21]} Qb6 {[%emt 0:02:06]} 8. dxc5 {[%emt 0:01:16]} Bxc5 {[%emt 0:05:41]} 9. b4 {[%emt 0:03:08]} Bf8 {[%emt 0:07:41]} 10. e4 {[%emt 0:14:02]} h6 {[%emt 0:16:45]} 11. Be3 {[%emt 0:01:32]} Qc7 {[%emt 0:00:06]} 12. b5 {[%emt 0:17:12]} Na5 {[%emt 0:08:51]} 13. exd5 {[%emt 0:12:36]} exd5 {[%emt 0:01:32]} 14. b6 {[%emt 0:00:08]} axb6 {[%emt 0:03:33]} 15. Nd4 {[%emt 0:02:23]} g6 {[%emt 0:05:23]} 16. Nb5 {[%emt 0:10:32]} Qd8 {[%emt 0:05:27]} 17. Be2 {[%emt 0:17:20]} Ng7 {[%emt 0:02:48]} 18. Qa4 {[%emt 0:04:12]} Bd7 {[%emt 0:01:55]} 19. Qd4 {[%emt 0:00:09]} Nc6 {[%emt 0:12:16]} 20. Qxd5 {[%emt 0:05:28]} Be7 {[%emt 0:01:14]} 21. Nc4 {[%emt 0:01:19]} O-O {[%emt 0:01:17]} 22. Bxb6 {[%emt 0:00:32]} Be6 {[%emt 0:01:43]} 23. Qf3 {[%emt 0:03:02]} Qb8 {[%emt 0:01:25]} 24. Bc7 {[%emt 0:00:40]} Qe8 {[%emt 0:00:05]} 25. O-O {[%emt 0:01:00]} Nf5 {[%emt 0:00:56]} 26. Nb6 {[%emt 0:00:14]} Ra6 {[%emt 0:00:19]} 27. Nd5 {[%emt 0:00:59]} Bg5 {[%emt 0:00:40]} 28. Rfe1 {[%emt 0:01:15]} Bxd5 {[%emt 0:00:25]} 29. Qxd5 {[%emt 0:00:06]} Nce7 {[%emt 0:00:20]} 30. Qxb7 {[%emt 0:00:12]} Re6 {[%emt 0:00:27]} 31. Bc4 {[%emt 0:00:13]} Rxe1+ {[%emt 0:00:36]} 32. Rxe1 {[%emt 0:00:02]} Qd7 {[%emt 0:00:03]} 33. a4 {[%emt 0:00:46]} Rc8 {[%emt 0:00:55]} 34. g3 {[%emt 0:00:23]} Nc6 {[%emt 0:00:40]} 35. Bd5 {[%emt 0:01:14]} Nce7 {[%emt 0:00:43]} 36. Bf3 {[%emt 0:00:53]} Qd2 {[%emt 0:00:35]} 37. Qe4 {[%emt 0:00:22]} Nd5 {[%emt 0:00:28]} 38. Rd1 {[%emt 0:01:04]} Nxc3 {[%emt 0:00:01]} 39. Rxd2 {[%emt 0:00:13]} Nxe4 {[%emt 0:00:01]} 40. Rc2 {[%emt 0:00:19]} Nd2 {[%emt 0:01:17]} 41. Bb7 {[%emt 0:00:32]} Re8 {[%emt 0:00:01]} 42. h4 {[%emt 0:00:15]} Re1+ {[%emt 0:00:07]} 43. Kg2 {[%emt 0:00:31]} Re2 {[%emt 0:00:13]} 44. Nc3 {[%emt 0:01:04]} Ne3+ {[%emt 0:00:44]} 45. Kh3 {[%emt 0:00:00]} Rxf2 {[%emt 0:00:14]} 46. Bb6 {[%emt 0:00:33]} Nxc2 {[%emt 0:01:44]} 47. Bxf2 {[%emt 0:00:06]} Bd8 {[%emt 0:00:09]} 48. Ne4 {[%emt 0:01:10]} Nc4 {[%emt 0:00:31]} 49. Kg2 {[%emt 0:00:33]} Nb4 {[%emt 0:00:49]} 50. Bd4 {[%emt 0:00:31]} Na5 {[%emt 0:00:23]} 51. Bc8 {[%emt 0:00:27]} Nd5 {[%emt 0:00:28]} 52. Bd7 {[%emt 0:00:20]} h5 {[%emt 0:00:43]} 53. Bb5 {[%emt 0:00:09]} Kf8 {[%emt 0:00:24]} 54. Nc3 {[%emt 0:00:52]} Bb6 {[%emt 0:00:31]} 55. Be5 {[%emt 0:00:09]} Bc7 {[%emt 0:00:15]} 56. Bh8 {[%emt 0:00:14]} Nb4 {[%emt 0:00:52]} 57. Bd4 {[%emt 0:00:20]} Bd6 {[%emt 0:00:33]} 58. Ne4 {[%emt 0:00:16]} Be7 {[%emt 0:00:13]} 59. Bc3 {[%emt 0:00:50]} Nbc6 {[%emt 0:00:41]} 60. Kf3 {[%emt 0:00:22]} Bb4 {[%emt 0:00:21]} 61. Bb2 {[%emt 0:00:17]} Ke7 {[%emt 0:00:10]} 62. Nf6 {[%emt 0:00:44]} Ke6 {[%emt 0:00:32]} 63. Ke4 {[%emt 0:00:16]} Bd6 {[%emt 0:00:11]} 64. Bf1 {[%emt 0:01:51]} Bxg3 {[%emt 0:00:07]} 65. Bh3+ Kd6 {[%emt 0:00:58]} 66. Ba3+ {[%emt 0:00:16]} Kc7 {[%emt 0:00:03]} 67. Nd5+ {[%emt 0:00:16]} Kb7 {[%emt 0:00:11]} 68. Bd7 {[%emt 0:01:28]} f5+ {[%emt 0:01:32]} 69. Kf3 {[%emt 0:00:05]} Bxh4 {[%emt 0:00:28]} 70. Be8 {[%emt 0:00:04]} Ne5+ {[%emt 0:01:05]} 71. Kg2 {[%emt 0:00:18]} Bg5 {[%emt 0:00:22]} 72. Bb4 {[%emt 0:01:40]} Nac4 {[%emt 0:00:21]} 73. Bb5 {[%emt 0:00:30]} Bd8 {[%emt 0:00:42]} 74. Nf4 {[%emt 0:00:17]} h4 {[%emt 0:00:23]} 75. Ne6 {[%emt 0:00:32]} Ba5 {[%emt 0:00:34]} 76. Be7 {[%emt 0:00:11]} Be1 {[%emt 0:00:31]} 77. Bf6 {[%emt 0:00:36]} Ng4 {[%emt 0:00:30]} 78. Bd4 {[%emt 0:00:31]} Nge5 {[%emt 0:00:28]} 79. Nd8+ {[%emt 0:00:28]} Kc7 {[%emt 0:00:12]} 80. Ne6+ {[%emt 0:00:01]} Kd6 {[%emt 0:00:08]} 81. Ng5 {[%emt 0:00:25]} Kd5 {[%emt 0:00:38]} 82. Ba7 {[%emt 0:00:10]} Bd2 {[%emt 0:00:34]} 83. Nf3 {[%emt 0:00:58]} Nxf3 {[%emt 0:00:01]} 84. Kxf3 {[%emt 0:00:07]} g5 {[%emt 0:00:09]} 85. Ke2 {[%emt 0:00:12]} h3 {[%emt 0:00:52]} 86. Bg1 {[%emt 0:00:48]} Bf4 {[%emt 0:00:25]} 87. Bd7 {[%emt 0:00:08]} Nd6 {[%emt 0:01:00]} 88. Kf3 {[%emt 0:01:12]} h2 {[%emt 0:00:22]} 89. Bxh2 {[%emt 0:00:06]} Bxh2 {[%emt 0:00:03]} 90. Bxf5 {[%emt 0:00:07]} Nxf5 {[%emt 0:00:02]} 91. Kg4 {[%emt 0:00:06]} Bf4 {[%emt 0:00:03]} 0-1

[Event "Panchenko Memorial 2019"]
[Site "Chelyabinsk"]
[Date "2019.09.12"]
[Round "4.10"]
[White "Zhigalko, Andrey"]
[Black "Tsvetkov, Andrey"]
[Result "1-0"]
[ECO "A13"]
[WhiteElo "2539"]
[BlackElo "2373"]
[Annotator "ChessBase"]
[PlyCount "59"]
[EventDate "2019.09.09"]
[EventType "swiss"]
[EventCountry "RUS"]
[SourceTitle "playchess.com"]
[Source "ChessBase"]
[SourceQuality "1"]
[TimeControl "5400+30"]

1. c4 {[%emt 0:00:00]} e6 {[%emt 0:00:00]} 2. g3 {[%emt 0:00:00]} d5 {[%emt 0:01:01]} 3. Bg2 {[%emt 0:00:01]} Nf6 {[%emt 0:00:28]} 4. Nf3 {[%emt 0:00:18]} dxc4 {[%emt 0:00:09]} 5. Qa4+ {[%emt 0:00:35]} Nbd7 {[%emt 0:00:39]} 6. Qxc4 {[%emt 0:00:28]} a6 {[%emt 0:00:21]} 7. Qc2 {[%emt 0:01:02]} c5 {[%emt 0:00:36]} 8. Nc3 {[%emt 0:00:51]} Qc7 {[%emt 0:06:56]} 9. d4 {[%emt 0:02:03]} b6 {[%emt 0:08:24]} 10. Bf4 {[%emt 0:06:09]} Bd6 {[%emt 0:03:34]} 11. Bxd6 {[%emt 0:34:04]} Qxd6 {[%emt 0:00:17]} 12. Ng5 {[%emt 0:04:06]} Rb8 {[%emt 0:03:25]} 13. Nce4 {[%emt 0:04:42]} Nxe4 {[%emt 0:06:14]} 14. Nxe4 {[%emt 0:00:17]} Qxd4 {[%emt 0:01:27]} 15. Rd1 {[%emt 0:02:24]} Qb4+ {[%emt 0:01:44]} 16. Rd2 {[%emt 0:00:07]} O-O {[%emt 0:04:00]} 17. O-O {[%emt 0:12:03]} Ne5 {[%emt 0:02:28]} 18. a3 {[%emt 0:03:41]} Qc4 {[%emt 0:04:43]} 19. Qd1 {[%emt 0:00:10]} Bd7 {[%emt 0:25:01]} 20. b3 {[%emt 0:13:46]} Qb5 {[%emt 0:00:07]} 21. Nd6 {[%emt 0:05:28]} Qa5 {[%emt 0:00:16]} 22. f4 {[%emt 0:00:15]} c4 {[%emt 0:04:24]} 23. fxe5 {[%emt 0:00:02]} c3 {[%emt 0:00:05]} 24. Nc4 {[%emt 0:02:11]} Qc5+ {[%emt 0:00:32]} 25. Rd4 {[%emt 0:00:01]} b5 {[%emt 0:00:19]} 26. b4 {[%emt 0:00:53]} Qa7 {[%emt 0:00:06]} 27. Kh1 {[%emt 0:01:53]} c2 {[%emt 0:00:28]} 28. Qd2 {[%emt 0:00:25]} bxc4 {[%emt 0:00:07]} 29. Rxd7 {[%emt 0:00:32]} c3 {[%emt 0:00:03]} 30. Qd3 {[%emt 0:00:40]} 1-0

[Event "Panchenko Memorial 2019"]
[Site "Chelyabinsk"]
[Date "2019.09.13"]
[Round "5.1"]
[White "Badelka, Olga"]
[Black "Volkov, Sergey"]
[Result "1/2-1/2"]
[ECO "D15"]
[WhiteElo "2399"]
[BlackElo "2557"]
[Annotator "ChessBase"]
[PlyCount "87"]
[EventDate "2019.09.09"]
[EventType "swiss"]
[EventCountry "RUS"]
[SourceTitle "playchess.com"]
[Source "ChessBase"]
[SourceQuality "1"]
[TimeControl "5400+30"]

1. d4 {[%emt 0:00:00]} d5 {[%emt 0:00:00]} 2. c4 {[%emt 0:00:00]} c6 {[%emt 0:00:00]} 3. Nf3 {[%emt 0:00:00]} Nf6 {[%emt 0:01:01]} 4. Nc3 {[%emt 0:00:00]} a6 {[%emt 0:00:13]} 5. e3 {[%emt 0:00:10]} b5 {[%emt 0:01:30]} 6. b3 {[%emt 0:00:14]} Bg4 {[%emt 0:00:09]} 7. a4 {[%emt 0:00:14]} bxc4 {[%emt 0:00:46]} 8. bxc4 {[%emt 0:00:06]} e6 {[%emt 0:00:17]} 9. c5 {[%emt 0:01:06]} a5 {[%emt 0:00:45]} 10. Be2 {[%emt 0:00:22]} Nbd7 {[%emt 0:00:23]} 11. Bd2 {[%emt 0:03:22]} Qc7 {[%emt 0:03:39]} 12. h3 {[%emt 0:00:39]} Bh5 {[%emt 0:02:03]} 13. g4 {[%emt 0:02:04]} Bg6 {[%emt 0:00:23]} 14. Nh4 {[%emt 0:22:57]} Ne4 {[%emt 0:02:27]} 15. f4 {[%emt 0:03:29]} Nxc3 {[%emt 0:04:03]} 16. Bxc3 {[%emt 0:00:04]} Be4 {[%emt 0:00:06]} 17. Bf3 {[%emt 0:08:25]} Be7 {[%emt 0:01:33]} 18. Ng2 {[%emt 0:00:05]} Bxf3 {[%emt 0:02:55]} 19. Qxf3 {[%emt 0:00:05]} Nf6 {[%emt 0:00:06]} 20. O-O {[%emt 0:00:57]} Ne4 {[%emt 0:00:38]} 21. Rfc1 {[%emt 0:02:12]} O-O {[%emt 0:06:17]} 22. Be1 {[%emt 0:08:28]} Rfb8 {[%emt 0:06:51]} 23. Rab1 {[%emt 0:01:17]} Bd8 {[%emt 0:00:49]} 24. Qd1 {[%emt 0:03:32]} Qc8 {[%emt 0:01:50]} 25. Rc2 {[%emt 0:02:01]} Bc7 {[%emt 0:02:18]} 26. Rcb2 {[%emt 0:15:29]} Rxb2 {[%emt 0:08:19]} 27. Rxb2 {[%emt 0:00:04]} Rb8 {[%emt 0:00:30]} 28. Rxb8 {[%emt 0:03:21]} Qxb8 {[%emt 0:00:12]} 29. Qd3 {[%emt 0:00:09]} Qb7 {[%emt 0:00:12]} 30. g5 {[%emt 0:01:30]} e5 {[%emt 0:07:59]} 31. fxe5 {[%emt 0:02:26]} Nxg5 {[%emt 0:00:40]} 32. Qf5 {[%emt 0:00:26]} Bd8 {[%emt 0:01:53]} 33. Bxa5 {[%emt 0:06:43]} g6 {[%emt 0:02:22]} 34. Qg4 {[%emt 0:00:03]} Nxh3+ {[%emt 0:10:08]} 35. Qxh3 {[%emt 0:00:05]} Bxa5 {[%emt 0:00:05]} 36. Qh4 {[%emt 0:02:32]} Qd7 {[%emt 0:04:25]} 37. Qf6 {[%emt 0:01:25]} Bd8 {[%emt 0:06:46]} 38. Qd6 {[%emt 0:02:12]} Qc8 {[%emt 0:00:07]} 39. e6 {[%emt 0:03:03]} Bc7 {[%emt 0:08:28]} 40. Qe7 {[%emt 0:02:02]} fxe6 {[%emt 0:00:08]} 41. Nf4 {[%emt 0:00:40]} Bxf4 {[%emt 0:00:32]} 42. exf4 {[%emt 0:00:16]} Qa8 {[%emt 0:02:41]} 43. Qxe6+ {[%emt 0:00:08]} Kg7 {[%emt 0:00:55]} 44. Qe7+ {[%emt 0:00:14]} 1/2-1/2